[Event "*** Titled Tuesday Blitz"]
[Site "Chess.com"]
[Date "2021.04.06"]
[Round "4"]
[White "NicoChasin"]
[Black "mac0504"]
[Result "1-0"]
[WhiteElo "2734"]
[BlackElo "2522"]
[TimeControl "180+1"]
[EndTime "10:36:54 PDT"]
[Termination "NicoChasin won by resignation"]

1. d4 {[%clk 0:02:56.3]} 1... Nf6 {[%clk 0:02:53.2]} 2. c4 {[%clk 0:02:54]} 2...
e6 {[%clk 0:02:52.2]} 3. Nf3 {[%clk 0:02:53.6]} 3... Bb4+ {[%clk 0:02:49.4]} 4.
Nbd2 {[%clk 0:02:52.5]} 4... d5 {[%clk 0:02:48.7]} 5. g3 {[%clk 0:02:51.3]} 5...
O-O {[%clk 0:02:45]} 6. Bg2 {[%clk 0:02:51]} 6... dxc4 {[%clk 0:02:44.9]} 7. Qc2
{[%clk 0:02:50.8]} 7... Nc6 {[%clk 0:02:42.3]} 8. Qxc4 {[%clk 0:02:49.5]} 8...
Qd5 {[%clk 0:02:36.4]} 9. O-O {[%clk 0:02:45.2]} 9... Bxd2 {[%clk 0:02:29.5]}
10. Qxd5 {[%clk 0:02:44.8]} 10... exd5 {[%clk 0:02:28.9]} 11. Bxd2 {[%clk
0:02:44.3]} 11... Re8 {[%clk 0:02:29.1]} 12. Rfe1 {[%clk 0:02:42.1]} 12... Bg4
{[%clk 0:02:27.4]} 13. e3 {[%clk 0:02:35.1]} 13... Bxf3 {[%clk 0:02:03.6]} 14.
Bxf3 {[%clk 0:02:34.5]} 14... Ne7 {[%clk 0:02:03.6]} 15. Rac1 {[%clk 0:02:33.7]}
15... c6 {[%clk 0:02:03.3]} 16. Bb4 {[%clk 0:02:33.1]} 16... Nf5 {[%clk
0:01:49.7]} 17. Be2 {[%clk 0:02:23.7]} 17... Rad8 {[%clk 0:01:46.4]} 18. Bd3
{[%clk 0:02:23]} 18... Nd6 {[%clk 0:01:44.4]} 19. f3 {[%clk 0:02:22.6]} 19...
Re6 {[%clk 0:01:38.3]} 20. Kf2 {[%clk 0:02:21.4]} 20... Rde8 {[%clk 0:01:38.9]}
21. g4 {[%clk 0:02:21.2]} 21... Nd7 {[%clk 0:01:34.1]} 22. b3 {[%clk 0:02:18.4]}
22... f6 {[%clk 0:01:19.4]} 23. Bf5 {[%clk 0:02:11.7]} 23... Nxf5 {[%clk
0:01:01.8]} 24. gxf5 {[%clk 0:02:12.6]} 24... R6e7 {[%clk 0:01:02.7]} 25. Bxe7
{[%clk 0:02:12.1]} 25... Rxe7 {[%clk 0:01:03.6]} 26. e4 {[%clk 0:02:12.6]} 26...
Nb6 {[%clk 0:01:00.2]} 27. a4 {[%clk 0:02:10.3]} 27... a5 {[%clk 0:00:58.1]} 28.
Rc5 {[%clk 0:02:10]} 1-0

[Event "*** Titled Tuesday Blitz"]
[Site "Chess.com"]
[Date "2021.04.06"]
[Round "4"]
[White "VinzentSpitzl"]
[Black "Harry_Rakkel"]
[Result "0-1"]
[WhiteElo "2409"]
[BlackElo "2599"]
[TimeControl "180+1"]
[EndTime "10:37:00 PDT"]
[Termination "Harry_Rakkel won by resignation"]

1. e4 {[%clk 0:03:00.9]} 1... c5 {[%clk 0:02:59.7]} 2. Nf3 {[%clk 0:03:00.5]}
2... e6 {[%clk 0:02:59.8]} 3. d4 {[%clk 0:03:00.8]} 3... cxd4 {[%clk 0:02:59.9]}
4. Nxd4 {[%clk 0:03:01.7]} 4... a6 {[%clk 0:02:58.9]} 5. Bd3 {[%clk 0:03:00.5]}
5... Bc5 {[%clk 0:02:57.5]} 6. Nb3 {[%clk 0:03:00.1]} 6... Ba7 {[%clk 0:02:57]}
7. O-O {[%clk 0:02:59.3]} 7... Nc6 {[%clk 0:02:54.7]} 8. Qe2 {[%clk 0:02:59.3]}
8... Nf6 {[%clk 0:02:52.1]} 9. Be3 {[%clk 0:02:58.9]} 9... d6 {[%clk 0:02:45.8]}
10. c4 {[%clk 0:02:56.3]} 10... e5 {[%clk 0:02:41.4]} 11. Bxa7 {[%clk
0:02:51.9]} 11... Rxa7 {[%clk 0:02:40.3]} 12. Nc3 {[%clk 0:02:49.3]} 12... Be6
{[%clk 0:02:38.6]} 13. Nd5 {[%clk 0:02:42.9]} 13... O-O {[%clk 0:02:32.7]} 14.
h3 {[%clk 0:02:34.8]} 14... a5 {[%clk 0:02:32.3]} 15. Rac1 {[%clk 0:02:05.5]}
15... a4 {[%clk 0:02:29.9]} 16. Na1 {[%clk 0:02:05.2]} 16... Nd7 {[%clk
0:02:22.2]} 17. Nc2 {[%clk 0:01:59.6]} 17... Nc5 {[%clk 0:02:20.5]} 18. Rfd1
{[%clk 0:01:45.4]} 18... Qa5 {[%clk 0:01:57.1]} 19. Nce3 {[%clk 0:01:37.7]}
19... Nd4 {[%clk 0:01:53.3]} 20. Qd2 {[%clk 0:01:37.7]} 20... Rb8 {[%clk
0:01:44.6]} 21. Qxa5 {[%clk 0:01:24.7]} 21... Rxa5 {[%clk 0:01:45.5]} 22. Nc2
{[%clk 0:01:23.5]} 22... Nxd3 {[%clk 0:01:40.7]} 23. Nxd4 {[%clk 0:01:15.2]}
23... Nxc1 {[%clk 0:01:39.6]} 24. Nxe6 {[%clk 0:01:09.6]} 24... fxe6 {[%clk
0:01:36.6]} 0-1

[Event "*** Titled Tuesday Blitz"]
[Site "Chess.com"]
[Date "2021.04.06"]
[Round "4"]
[White "Kotofeyca"]
[Black "Ranindu2003"]
[Result "1-0"]
[WhiteElo "2401"]
[BlackElo "2581"]
[TimeControl "180+1"]
[EndTime "10:37:03 PDT"]
[Termination "Kotofeyca won by resignation"]

1. d4 {[%clk 0:03:00.9]} 1... Nf6 {[%clk 0:02:57.1]} 2. c4 {[%clk 0:03:00.8]}
2... e6 {[%clk 0:02:57]} 3. Nf3 {[%clk 0:02:59.5]} 3... c5 {[%clk 0:02:51.8]} 4.
Nc3 {[%clk 0:02:58.2]} 4... cxd4 {[%clk 0:02:48.9]} 5. Nxd4 {[%clk 0:02:59.1]}
5... Nc6 {[%clk 0:02:49.6]} 6. g3 {[%clk 0:02:59.3]} 6... Qb6 {[%clk 0:02:48.4]}
7. Nc2 {[%clk 0:02:58.3]} 7... Ng4 {[%clk 0:02:38.5]} 8. e3 {[%clk 0:02:47.6]}
8... Nge5 {[%clk 0:02:38.5]} 9. b3 {[%clk 0:02:27.8]} 9... Be7 {[%clk
0:02:27.8]} 10. Bg2 {[%clk 0:02:26.5]} 10... O-O {[%clk 0:02:26.4]} 11. O-O
{[%clk 0:02:26.2]} 11... Rd8 {[%clk 0:02:24.5]} 12. Bb2 {[%clk 0:02:23.9]} 12...
Nxc4 {[%clk 0:02:18.1]} 13. Na4 {[%clk 0:02:12.5]} 13... Qa6 {[%clk 0:02:09.8]}
14. Bc3 {[%clk 0:01:27.3]} 14... d5 {[%clk 0:01:59.2]} 15. bxc4 {[%clk
0:01:10.2]} 15... Qxa4 {[%clk 0:01:52.9]} 16. cxd5 {[%clk 0:01:09.8]} 16... exd5
{[%clk 0:01:52.7]} 17. Nd4 {[%clk 0:00:54.9]} 17... Ne5 {[%clk 0:01:42.7]} 18.
Qxa4 {[%clk 0:00:53.4]} 1-0

[Event "*** Titled Tuesday Blitz"]
[Site "Chess.com"]
[Date "2021.04.06"]
[Round "4"]
[White "Horizonevent"]
[Black "TC2304"]
[Result "1-0"]
[WhiteElo "2499"]
[BlackElo "2294"]
[TimeControl "180+1"]
[EndTime "10:37:07 PDT"]
[Termination "Horizonevent won by resignation"]

1. d4 {[%clk 0:03:00.9]} 1... Nf6 {[%clk 0:02:59.7]} 2. c4 {[%clk 0:03:01]} 2...
c5 {[%clk 0:03:00.1]} 3. d5 {[%clk 0:02:59.7]} 3... e6 {[%clk 0:03:00.6]} 4. Nc3
{[%clk 0:02:57.9]} 4... exd5 {[%clk 0:03:01.5]} 5. cxd5 {[%clk 0:02:58.2]} 5...
d6 {[%clk 0:03:02.2]} 6. Nf3 {[%clk 0:02:50.4]} 6... g6 {[%clk 0:03:02.3]} 7. h3
{[%clk 0:02:48.8]} 7... Bg7 {[%clk 0:03:02.2]} 8. Bf4 {[%clk 0:02:49.4]} 8...
O-O {[%clk 0:03:00.7]} 9. e3 {[%clk 0:02:49.9]} 9... Na6 {[%clk 0:02:54.5]} 10.
Be2 {[%clk 0:02:35.9]} 10... Nc7 {[%clk 0:02:44.4]} 11. O-O {[%clk 0:02:34.6]}
11... Rb8 {[%clk 0:02:43.7]} 12. a4 {[%clk 0:02:34.4]} 12... a6 {[%clk
0:02:43.1]} 13. a5 {[%clk 0:02:34.8]} 13... Nh5 {[%clk 0:02:43.5]} 14. Bh2
{[%clk 0:02:33]} 14... Qe7 {[%clk 0:02:42]} 15. Nd2 {[%clk 0:02:31.4]} 15... Nf6
{[%clk 0:02:31.8]} 16. Nc4 {[%clk 0:02:29.9]} 16... Nfe8 {[%clk 0:02:27.8]} 17.
Bf3 {[%clk 0:02:12.4]} 17... f5 {[%clk 0:02:25.8]} 18. Re1 {[%clk 0:02:12.2]}
18... Nb5 {[%clk 0:02:23.7]} 19. Qb3 {[%clk 0:02:07.2]} 19... Nxc3 {[%clk
0:02:14.2]} 20. bxc3 {[%clk 0:02:06.4]} 20... Bd7 {[%clk 0:02:13]} 21. Nb6
{[%clk 0:01:58.4]} 21... Nf6 {[%clk 0:02:04]} 22. Nc4 {[%clk 0:01:52.4]} 22...
Ne8 {[%clk 0:02:00.6]} 23. Rad1 {[%clk 0:01:53]} 23... Bb5 {[%clk 0:01:59.5]}
24. Nb6 {[%clk 0:01:53.1]} 24... c4 {[%clk 0:01:38.3]} 25. Qb4 {[%clk
0:01:46.2]} 25... Be5 {[%clk 0:01:25.2]} 26. Bxe5 {[%clk 0:01:35.7]} 26... Qxe5
{[%clk 0:01:26.1]} 27. Nxc4 {[%clk 0:01:35.6]} 27... Rc8 {[%clk 0:01:17.1]} 28.
Nxe5 {[%clk 0:01:34.1]} 1-0

[Event "*** Titled Tuesday Blitz"]
[Site "Chess.com"]
[Date "2021.04.06"]
[Round "4"]
[White "Rondo_Capriccioso"]
[Black "BahadirOzen"]
[Result "0-1"]
[WhiteElo "2476"]
[BlackElo "2736"]
[TimeControl "180+1"]
[EndTime "10:37:09 PDT"]
[Termination "BahadirOzen won by resignation"]

1. e4 {[%clk 0:02:58.3]} 1... g6 {[%clk 0:03:00]} 2. Nf3 {[%clk 0:02:58.9]} 2...
d6 {[%clk 0:02:59.9]} 3. d4 {[%clk 0:02:59.8]} 3... Nf6 {[%clk 0:03:00.1]} 4.
Bd3 {[%clk 0:02:59.7]} 4... Bg7 {[%clk 0:03:00.3]} 5. h3 {[%clk 0:02:59.6]} 5...
O-O {[%clk 0:03:00.5]} 6. O-O {[%clk 0:03:00]} 6... Nbd7 {[%clk 0:02:56.3]} 7.
Nc3 {[%clk 0:02:42.8]} 7... e5 {[%clk 0:02:54.4]} 8. Re1 {[%clk 0:02:40.9]} 8...
c6 {[%clk 0:02:54.2]} 9. Be3 {[%clk 0:02:37.7]} 9... b5 {[%clk 0:02:53.2]} 10.
a4 {[%clk 0:02:34.8]} 10... b4 {[%clk 0:02:52.7]} 11. Ne2 {[%clk 0:02:34.7]}
11... exd4 {[%clk 0:02:49.3]} 12. Nexd4 {[%clk 0:02:30.2]} 12... Bb7 {[%clk
0:02:43.7]} 13. Bf4 {[%clk 0:02:24.8]} 13... Ne8 {[%clk 0:02:33.2]} 14. Bc4
{[%clk 0:02:03.7]} 14... Ne5 {[%clk 0:02:24.5]} 15. Bb3 {[%clk 0:02:02.9]} 15...
c5 {[%clk 0:02:16.5]} 16. Nb5 {[%clk 0:00:31.1]} 16... Qe7 {[%clk 0:02:02.4]}
17. Bg5 {[%clk 0:00:24.5]} 17... Nxf3+ {[%clk 0:02:02]} 0-1

[Event "*** Titled Tuesday Blitz"]
[Site "Chess.com"]
[Date "2021.04.06"]
[Round "4"]
[White "Artem_Sadovsky"]
[Black "vugarrasulov"]
[Result "0-1"]
[WhiteElo "2623"]
[BlackElo "2872"]
[TimeControl "180+1"]
[EndTime "10:37:12 PDT"]
[Termination "vugarrasulov won by resignation"]

1. Nf3 {[%clk 0:03:00.9]} 1... d5 {[%clk 0:03:00.2]} 2. e3 {[%clk 0:03:01.2]}
2... Nf6 {[%clk 0:02:59.7]} 3. c4 {[%clk 0:03:01.5]} 3... c6 {[%clk 0:02:59.3]}
4. b3 {[%clk 0:03:01.9]} 4... Bg4 {[%clk 0:02:59.1]} 5. Be2 {[%clk 0:03:01.3]}
5... Nbd7 {[%clk 0:02:59.4]} 6. Bb2 {[%clk 0:03:01]} 6... e6 {[%clk 0:02:59.6]}
7. O-O {[%clk 0:03:00.5]} 7... Bd6 {[%clk 0:02:59.1]} 8. h3 {[%clk 0:03:00.6]}
8... Bh5 {[%clk 0:02:58.8]} 9. d3 {[%clk 0:02:58.7]} 9... O-O {[%clk 0:02:57.5]}
10. Nbd2 {[%clk 0:02:59]} 10... Qe7 {[%clk 0:02:57.3]} 11. Re1 {[%clk 0:02:48]}
11... Rad8 {[%clk 0:02:51.3]} 12. Qc2 {[%clk 0:02:46.7]} 12... Rfe8 {[%clk
0:02:43.1]} 13. Rad1 {[%clk 0:02:46.7]} 13... e5 {[%clk 0:02:40.7]} 14. cxd5
{[%clk 0:02:46.8]} 14... cxd5 {[%clk 0:02:40.6]} 15. e4 {[%clk 0:02:39.6]} 15...
Rc8 {[%clk 0:02:38]} 16. Qb1 {[%clk 0:02:38.7]} 16... Bb4 {[%clk 0:02:31.6]} 17.
exd5 {[%clk 0:02:27.2]} 17... Nxd5 {[%clk 0:02:29.9]} 18. Nxe5 {[%clk 0:02:21]}
18... Bxe2 {[%clk 0:02:23.5]} 19. Rxe2 {[%clk 0:02:20.2]} 19... Bc3 {[%clk
0:02:16.3]} 20. Ndc4 {[%clk 0:01:53.6]} 20... Nxe5 {[%clk 0:02:09]} 21. Nxe5
{[%clk 0:01:32.3]} 21... Bxb2 {[%clk 0:02:09.1]} 22. Qxb2 {[%clk 0:01:23.4]}
22... Nc3 {[%clk 0:02:09.6]} 23. Rf1 {[%clk 0:00:20.6]} 0-1

[Event "*** Titled Tuesday Blitz"]
[Site "Chess.com"]
[Date "2021.04.06"]
[Round "4"]
[White "Susik_Gaboyan"]
[Black "EvilMorty23"]
[Result "0-1"]
[WhiteElo "2266"]
[BlackElo "2458"]
[TimeControl "180+1"]
[EndTime "10:37:17 PDT"]
[Termination "EvilMorty23 won by checkmate"]

1. e4 {[%clk 0:03:00.5]} 1... e6 {[%clk 0:03:00.1]} 2. d4 {[%clk 0:02:56.1]}
2... d5 {[%clk 0:03:01]} 3. Bd3 {[%clk 0:02:55.9]} 3... Nf6 {[%clk 0:03:00.4]}
4. e5 {[%clk 0:02:53]} 4... Nfd7 {[%clk 0:03:00.1]} 5. Ne2 {[%clk 0:02:52.1]}
5... c5 {[%clk 0:03:01]} 6. c3 {[%clk 0:02:51.4]} 6... Nc6 {[%clk 0:03:01.9]} 7.
Nd2 {[%clk 0:02:31.4]} 7... cxd4 {[%clk 0:02:59.3]} 8. cxd4 {[%clk 0:02:32.3]}
8... f6 {[%clk 0:02:59.8]} 9. Nf4 {[%clk 0:01:46.7]} 9... Nxd4 {[%clk
0:02:57.4]} 10. Qh5+ {[%clk 0:01:44.9]} 10... Ke7 {[%clk 0:02:57.1]} 11. exf6+
{[%clk 0:01:00.3]} 11... Nxf6 {[%clk 0:02:56.8]} 12. Ng6+ {[%clk 0:00:59]} 12...
hxg6 {[%clk 0:02:57.7]} 13. Qxh8 {[%clk 0:00:58.6]} 13... Kf7 {[%clk 0:02:58.1]}
14. O-O {[%clk 0:00:43]} 14... e5 {[%clk 0:02:57.8]} 15. Qh4 {[%clk 0:00:38]}
15... e4 {[%clk 0:02:57.6]} 16. Bxe4 {[%clk 0:00:22.1]} 16... dxe4 {[%clk
0:02:57.1]} 17. Nxe4 {[%clk 0:00:23]} 17... Be7 {[%clk 0:02:53.2]} 18. Ng5+
{[%clk 0:00:20.2]} 18... Kg8 {[%clk 0:02:48.2]} 19. Be3 {[%clk 0:00:14.8]} 19...
Nf5 {[%clk 0:02:47.5]} 20. Qc4+ {[%clk 0:00:13.2]} 20... Qd5 {[%clk 0:02:44.9]}
21. Qc7 {[%clk 0:00:10.8]} 21... Nxe3 {[%clk 0:02:39.9]} 22. fxe3 {[%clk
0:00:10.1]} 22... Bd7 {[%clk 0:02:32.8]} 23. Qg3 {[%clk 0:00:02.7]} 23... Bc6
{[%clk 0:02:30.1]} 24. Rad1 {[%clk 0:00:02.1]} 24... Qxa2 {[%clk 0:02:27.6]} 25.
Qh4 {[%clk 0:00:01.9]} 25... Qxb2 {[%clk 0:02:27.3]} 26. Rxf6 {[%clk 0:00:01.6]}
26... Qxg2# {[%clk 0:02:27.3]} 0-1

[Event "*** Titled Tuesday Blitz"]
[Site "Chess.com"]
[Date "2021.04.06"]
[Round "4"]
[White "DonBroca"]
[Black "shreyansshah123"]
[Result "1/2-1/2"]
[WhiteElo "2205"]
[BlackElo "1642"]
[TimeControl "180+1"]
[EndTime "10:37:18 PDT"]
[Termination "Game drawn by repetition"]

1. e4 {[%clk 0:03:00.9]} 1... c6 {[%clk 0:02:59.7]} 2. d4 {[%clk 0:02:59.4]}
2... d5 {[%clk 0:03:00.6]} 3. Nc3 {[%clk 0:02:59.1]} 3... dxe4 {[%clk
0:03:00.6]} 4. Nxe4 {[%clk 0:03:00]} 4... Nf6 {[%clk 0:03:00.9]} 5. Nxf6+ {[%clk
0:02:59.2]} 5... exf6 {[%clk 0:03:01.8]} 6. Nf3 {[%clk 0:02:59.2]} 6... Bg4
{[%clk 0:02:58]} 7. Be2 {[%clk 0:02:50.5]} 7... Bd6 {[%clk 0:02:53.8]} 8. b3
{[%clk 0:02:49.9]} 8... Nd7 {[%clk 0:02:47.7]} 9. Bb2 {[%clk 0:02:49.6]} 9...
O-O {[%clk 0:02:47]} 10. O-O {[%clk 0:02:50.1]} 10... Nb6 {[%clk 0:02:46.7]} 11.
c4 {[%clk 0:02:49.8]} 11... Bb8 {[%clk 0:02:46.5]} 12. h3 {[%clk 0:02:48]} 12...
Bf5 {[%clk 0:02:43.6]} 13. Bd3 {[%clk 0:02:43.6]} 13... Bxd3 {[%clk 0:02:43]}
14. Qxd3 {[%clk 0:02:44.5]} 14... Re8 {[%clk 0:02:39.4]} 15. Rfe1 {[%clk
0:02:44.2]} 15... Bc7 {[%clk 0:02:38.4]} 16. Rxe8+ {[%clk 0:02:39.1]} 16... Qxe8
{[%clk 0:02:39.3]} 17. Re1 {[%clk 0:02:38.5]} 17... Qd7 {[%clk 0:02:38.2]} 18.
Nh4 {[%clk 0:02:36.3]} 18... Re8 {[%clk 0:02:36.1]} 19. Re3 {[%clk 0:02:28.4]}
19... Bf4 {[%clk 0:02:28.7]} 20. Re4 {[%clk 0:02:14.8]} 20... Bg5 {[%clk
0:02:25.4]} 21. Nf5 {[%clk 0:02:07.3]} 21... Rxe4 {[%clk 0:02:12.2]} 22. Qxe4
{[%clk 0:02:06.3]} 22... g6 {[%clk 0:02:11.6]} 23. Ne3 {[%clk 0:01:38.4]} 23...
Bxe3 {[%clk 0:02:07.9]} 24. Qxe3 {[%clk 0:01:32]} 24... Qe6 {[%clk 0:02:07]} 25.
Kf1 {[%clk 0:01:26.1]} 25... Kf8 {[%clk 0:02:04.5]} 26. Qh6+ {[%clk 0:01:18.8]}
26... Kg8 {[%clk 0:02:03.5]} 27. Qf4 {[%clk 0:01:16.7]} 27... Nd7 {[%clk
0:02:00.4]} 28. Qc7 {[%clk 0:01:13.6]} 28... Qf5 {[%clk 0:01:54.3]} 29. Bc3
{[%clk 0:00:58.2]} 29... Qb1+ {[%clk 0:01:50.1]} 30. Be1 {[%clk 0:00:58.3]}
30... Qd3+ {[%clk 0:01:43.1]} 31. Kg1 {[%clk 0:00:57.5]} 31... Qd1 {[%clk
0:01:42.8]} 32. Kf1 {[%clk 0:00:56.9]} 32... Qd3+ {[%clk 0:01:42.8]} 33. Kg1
{[%clk 0:00:57.3]} 33... Qd1 {[%clk 0:01:43.2]} 34. Kf1 {[%clk 0:00:57.2]} 34...
Qd3+ {[%clk 0:01:43.4]} 1/2-1/2

[Event "*** Titled Tuesday Blitz"]
[Site "Chess.com"]
[Date "2021.04.06"]
[Round "4"]
[White "ukchessbomber"]
[Black "Irishchessman16"]
[Result "1-0"]
[WhiteElo "2477"]
[BlackElo "2279"]
[TimeControl "180+1"]
[EndTime "10:37:32 PDT"]
[Termination "ukchessbomber won by resignation"]

1. d4 {[%clk 0:03:00.9]} 1... f5 {[%clk 0:02:58.7]} 2. c4 {[%clk 0:03:00.9]}
2... Nf6 {[%clk 0:02:58.5]} 3. g3 {[%clk 0:03:01.5]} 3... g6 {[%clk 0:02:58]} 4.
Bg2 {[%clk 0:03:02.1]} 4... Bg7 {[%clk 0:02:58.6]} 5. Nf3 {[%clk 0:03:03]} 5...
O-O {[%clk 0:02:58.8]} 6. O-O {[%clk 0:03:03.9]} 6... d6 {[%clk 0:02:59.3]} 7.
Nc3 {[%clk 0:03:04.5]} 7... c6 {[%clk 0:02:59.8]} 8. Re1 {[%clk 0:03:05.1]} 8...
Na6 {[%clk 0:02:56.8]} 9. e4 {[%clk 0:03:04.8]} 9... e5 {[%clk 0:02:51.5]} 10.
exf5 {[%clk 0:02:34.5]} 10... Bxf5 {[%clk 0:02:28.3]} 11. dxe5 {[%clk 0:02:22]}
11... dxe5 {[%clk 0:02:26.6]} 12. Be3 {[%clk 0:02:22.9]} 12... Ng4 {[%clk
0:02:11.8]} 13. Bg5 {[%clk 0:02:02]} 13... Qxd1 {[%clk 0:02:07.3]} 14. Raxd1
{[%clk 0:02:01.8]} 14... h6 {[%clk 0:01:40.6]} 15. Be7 {[%clk 0:01:58.1]} 15...
Rf7 {[%clk 0:01:36.9]} 16. Ba3 {[%clk 0:01:59]} 16... e4 {[%clk 0:01:06.8]} 17.
Nxe4 {[%clk 0:01:56.8]} 17... Bxe4 {[%clk 0:00:51.7]} 18. Rxe4 {[%clk
0:01:57.7]} 18... h5 {[%clk 0:00:51.5]} 19. h3 {[%clk 0:01:36.6]} 19... Nf6
{[%clk 0:00:47.2]} 20. Ree1 {[%clk 0:01:32.2]} 20... Nd7 {[%clk 0:00:39.5]} 21.
Ng5 {[%clk 0:01:31.3]} 1-0

[Event "*** Titled Tuesday Blitz"]
[Site "Chess.com"]
[Date "2021.04.06"]
[Round "4"]
[White "Sanan_Sjugirov"]
[Black "YoreDea"]
[Result "1-0"]
[WhiteElo "2866"]
[BlackElo "2632"]
[TimeControl "180+1"]
[EndTime "10:37:34 PDT"]
[Termination "Sanan_Sjugirov won by resignation"]

1. e4 {[%clk 0:03:00.9]} 1... e6 {[%clk 0:02:55.1]} 2. d4 {[%clk 0:03:00.5]}
2... d5 {[%clk 0:02:55.2]} 3. e5 {[%clk 0:03:00.8]} 3... c5 {[%clk 0:02:54.5]}
4. c3 {[%clk 0:03:01.1]} 4... Qb6 {[%clk 0:02:53.2]} 5. Nf3 {[%clk 0:03:01.1]}
5... Bd7 {[%clk 0:02:53.2]} 6. a3 {[%clk 0:03:01.2]} 6... cxd4 {[%clk 0:02:47]}
7. cxd4 {[%clk 0:03:00.9]} 7... Bb5 {[%clk 0:02:47.1]} 8. Bxb5+ {[%clk
0:03:00.8]} 8... Qxb5 {[%clk 0:02:47.2]} 9. Nc3 {[%clk 0:02:54.9]} 9... Qa6
{[%clk 0:02:47.2]} 10. b4 {[%clk 0:02:53.6]} 10... Nh6 {[%clk 0:02:29]} 11. b5
{[%clk 0:02:37.7]} 11... Qa5 {[%clk 0:02:26]} 12. Bd2 {[%clk 0:02:37.4]} 12...
Qd8 {[%clk 0:02:16.1]} 13. Bxh6 {[%clk 0:02:35.1]} 13... gxh6 {[%clk 0:02:15.8]}
14. O-O {[%clk 0:02:35.7]} 14... Bg7 {[%clk 0:02:11.8]} 15. Ne2 {[%clk 0:02:35]}
15... O-O {[%clk 0:02:11]} 16. Nf4 {[%clk 0:02:34.1]} 16... Nd7 {[%clk 0:02:11]}
17. a4 {[%clk 0:02:26.4]} 17... Rc8 {[%clk 0:02:10]} 18. Nh5 {[%clk 0:02:23.6]}
18... Rc4 {[%clk 0:01:59.4]} 19. Qd2 {[%clk 0:02:12.1]} 19... Qe7 {[%clk
0:01:57.3]} 20. Rfe1 {[%clk 0:02:06.9]} 20... Rfc8 {[%clk 0:01:56.1]} 21. Qf4
{[%clk 0:02:06]} 21... Bf8 {[%clk 0:01:51.1]} 22. Nf6+ {[%clk 0:02:02.6]} 22...
Nxf6 {[%clk 0:01:50.8]} 23. exf6 {[%clk 0:02:03.5]} 23... Qc7 {[%clk 0:01:47.6]}
24. Ne5 {[%clk 0:02:01.9]} 24... Kh8 {[%clk 0:01:43.1]} 25. Qg4 {[%clk
0:01:54.3]} 25... Rc3 {[%clk 0:01:41]} 26. a5 {[%clk 0:01:43.8]} 26... b6 {[%clk
0:01:20.7]} 27. axb6 {[%clk 0:01:43.3]} 27... axb6 {[%clk 0:01:20.7]} 28. h3
{[%clk 0:01:38]} 28... Qb7 {[%clk 0:01:15.8]} 29. Re3 {[%clk 0:01:27.6]} 29...
Rxe3 {[%clk 0:01:06.3]} 30. fxe3 {[%clk 0:01:28.5]} 30... Rc2 {[%clk 0:01:05.7]}
31. Ra8 {[%clk 0:01:20.5]} 1-0

[Event "*** Titled Tuesday Blitz"]
[Site "Chess.com"]
[Date "2021.04.06"]
[Round "4"]
[White "Didici"]
[Black "scandalgod"]
[Result "0-1"]
[WhiteElo "2631"]
[BlackElo "2525"]
[TimeControl "180+1"]
[EndTime "10:37:50 PDT"]
[Termination "scandalgod won by resignation"]

1. d4 {[%clk 0:03:00.9]} 1... d5 {[%clk 0:03:00]} 2. c4 {[%clk 0:03:00.7]} 2...
c6 {[%clk 0:03:00.2]} 3. Nc3 {[%clk 0:03:01]} 3... Nf6 {[%clk 0:02:58.8]} 4. Nf3
{[%clk 0:03:01.2]} 4... dxc4 {[%clk 0:02:58.6]} 5. a4 {[%clk 0:02:57]} 5... Bf5
{[%clk 0:02:55.9]} 6. Ne5 {[%clk 0:02:56.9]} 6... e6 {[%clk 0:02:53.5]} 7. f3
{[%clk 0:02:56.1]} 7... Bb4 {[%clk 0:02:51.5]} 8. Nxc4 {[%clk 0:02:56]} 8... O-O
{[%clk 0:02:47.3]} 9. Kf2 {[%clk 0:02:55.7]} 9... Nbd7 {[%clk 0:02:30.3]} 10. e4
{[%clk 0:02:55]} 10... Bg6 {[%clk 0:02:27.8]} 11. Be3 {[%clk 0:02:49.6]} 11...
Qe7 {[%clk 0:02:25.5]} 12. Qb3 {[%clk 0:02:38.5]} 12... c5 {[%clk 0:02:22.1]}
13. Na2 {[%clk 0:02:25]} 13... cxd4 {[%clk 0:02:10.9]} 14. Qxb4 {[%clk
0:02:24.4]} 14... dxe3+ {[%clk 0:02:08.1]} 15. Kxe3 {[%clk 0:02:15.8]} 15... Nc5
{[%clk 0:01:57.3]} 16. Be2 {[%clk 0:02:14.9]} 16... Nd5+ {[%clk 0:01:54.1]} 17.
exd5 {[%clk 0:02:08.1]} 17... exd5+ {[%clk 0:01:54.2]} 18. Kf2 {[%clk
0:02:06.8]} 18... dxc4 {[%clk 0:01:40]} 19. Bxc4 {[%clk 0:02:06]} 19... Rad8
{[%clk 0:01:28]} 20. Rhe1 {[%clk 0:02:01.2]} 20... Qg5 {[%clk 0:01:23.5]} 21.
Rad1 {[%clk 0:01:54.6]} 21... a5 {[%clk 0:01:18.5]} 22. Qa3 {[%clk 0:01:20.1]}
22... Qh4+ {[%clk 0:01:05.8]} 23. Kg1 {[%clk 0:01:18.5]} 23... Rxd1 {[%clk
0:01:00.2]} 24. Rxd1 {[%clk 0:01:17.4]} 24... Qxc4 {[%clk 0:01:00]} 25. Rc1
{[%clk 0:01:16.7]} 25... Qd4+ {[%clk 0:00:59.9]} 26. Kh1 {[%clk 0:01:16.2]}
26... Nd3 {[%clk 0:01:00.1]} 27. h3 {[%clk 0:01:12]} 27... Nxc1 {[%clk
0:00:58.8]} 28. Nxc1 {[%clk 0:01:11.1]} 28... Qd1+ {[%clk 0:00:57.5]} 0-1